[Event "94th FRA-ch Open D 2019"]
[Site "Chartres"]
[Date "2019.08.23"]
[Round "7.1"]
[White "Lissillour, Baptiste"]
[Black "Minatchy, Tristan"]
[Result "1-0"]
[ECO "E92"]
[WhiteElo "1469"]
[BlackElo "1452"]
[Annotator "NA"]
[PlyCount "115"]
[EventDate "2019.08.17"]
[EventType "swiss"]
[EventCountry "FRA"]
[SourceTitle "playchess.com"]
[Source "ChessBase"]
[SourceQuality "1"]
[TimeControl "40/5400+30:1800+30"]

1. d4 {[%emt 0:00:00]} Nf6 {[%emt 0:00:00]} 2. Nf3 {[%emt 0:00:00]} g6 {[%emt 0:00:12]} 3. c4 {[%emt 0:00:13]} Bg7 {[%emt 0:00:38]} 4. Nc3 {[%emt 0:00:15]} O-O {[%emt 0:00:34]} 5. e4 {[%emt 0:00:16]} d6 {[%emt 0:00:55]} 6. Be2 {[%emt 0:00:18]} e5 {[%emt 0:00:41]} 7. dxe5 {[%emt 0:00:27]} dxe5 {[%emt 0:00:14]} 8. Qxd8 {[%emt 0:00:19]} Rxd8 {[%emt 0:00:03]} 9. Bg5 {[%emt 0:00:14]} Re8 {[%emt 0:05:05]} 10. Nd5 {[%emt 0:00:38]} Nxd5 {[%emt 0:02:09]} 11. cxd5 {[%emt 0:00:10]} c6 {[%emt 0:08:51]} 12. Bc4 {[%emt 0:00:18]} cxd5 {[%emt 0:06:09]} 13. Bxd5 {[%emt 0:00:53]} Nc6 {[%emt 0:06:44]} 14. O-O-O {[%emt 0:00:39]} Be6 {[%emt 0:12:30]} 15. Bxe6 {[%emt 0:04:36]} Rxe6 {[%emt 0:00:26]} 16. Rhe1 {[%emt 0:09:18]} a5 {[%emt 0:13:13]} 17. Kb1 {[%emt 0:05:49]} a4 {[%emt 0:13:32]} 18. Rd5 {[%emt 0:04:05]} a3 {[%emt 0:08:03]} 19. Rb5 {[%emt 0:03:11]} f6 {[%emt 0:04:35]} 20. Bd2 {[%emt 0:03:46]} Re7 {[%emt 0:00:38]} 21. Rd5 {[%emt 0:03:37]} axb2 {[%emt 0:04:50]} 22. Kxb2 {[%emt 0:00:12]} Ra4 {[%emt 0:01:54]} 23. Kb3 {[%emt 0:02:28]} Ra6 {[%emt 0:00:50]} 24. Rb5 {[%emt 0:02:27]} Rd7 {[%emt 0:02:25]} 25. Bc3 {[%emt 0:06:32]} Na7 {[%emt 0:02:38]} 26. Rd5 {[%emt 0:03:35]} Rxd5 {[%emt 0:02:25]} 27. exd5 {[%emt 0:00:06]} Nb5 {[%emt 0:00:29]} 28. Bb4 {[%emt 0:01:39]} Rb6 {[%emt 0:00:52]} 29. Kc4 {[%emt 0:19:03]} Nd6+ {[%emt 0:02:01]} 30. Bxd6 {[%emt 0:00:27]} Rxd6 {[%emt 0:00:03]} 31. Nd2 {[%emt 0:01:43]} b5+ {[%emt 0:00:01]} 32. Kc5 {[%emt 0:02:16]} Bf8 {[%emt 0:00:07]} 33. Ne4 {[%emt 0:00:59]} Rd8+ {[%emt 0:00:41]} 34. Kc6 {[%emt 0:01:59]} Kf7 {[%emt 0:01:04]} 35. Rd1 {[%emt 0:01:23]} b4 {[%emt 0:00:49]} 36. d6 {[%emt 0:01:03]} f5 {[%emt 0:00:37]} 37. Ng5+ {[%emt 0:00:59]} Ke8 {[%emt 0:00:42]} 38. d7+ {[%emt 0:02:39]} Ke7 {[%emt 0:00:30]} 39. Kc7 {[%emt 0:00:12]} Bg7 {[%emt 0:00:47]} 40. Ne6 {[%emt 0:00:22]} Rxd7+ {[%emt 0:00:00]} 41. Rxd7+ {[%emt 0:00:14]} Kxe6 {[%emt 0:00:36]} 42. Rxg7 {[%emt 0:00:11]} e4 {[%emt 0:00:03]} 43. Rxh7 {[%emt 0:00:17]} f4 {[%emt 0:00:03]} 44. Rh3 {[%emt 0:00:15]} Ke5 {[%emt 0:00:13]} 45. Rb3 {[%emt 0:00:08]} Kd4 {[%emt 0:00:23]} 46. Rxb4+ {[%emt 0:00:07]} Kd3 {[%emt 0:00:10]} 47. Rb3+ {[%emt 0:00:15]} Ke2 {[%emt 0:00:04]} 48. f3 {[%emt 0:00:17]} e3 {[%emt 0:00:05]} 49. a4 {[%emt 0:00:09]} Kf2 {[%emt 0:00:03]} 50. Rb2+ {[%emt 0:00:30]} Kf1 {[%emt 0:00:02]} 51. a5 {[%emt 0:00:11]} e2 {[%emt 0:00:02]} 52. Rxe2 {[%emt 0:00:09]} Kxe2 {[%emt 0:00:08]} 53. a6 {[%emt 0:00:06]} Kf2 {[%emt 0:00:10]} 54. a7 {[%emt 0:00:11]} Kxg2 {[%emt 0:00:08]} 55. a8=Q {[%emt 0:00:07]} Kxh2 {[%emt 0:00:09]} 56. Kd6 {[%emt 0:00:17]} Kg3 {[%emt 0:00:17]} 57. Ke5 {[%emt 0:00:07]} g5 {[%emt 0:00:03]} 58. Kf5 {[%emt 0:00:28]} 1-0

[Event "94th FRA-ch Open D 2019"]
[Site "Chartres"]
[Date "2019.08.23"]
[Round "7.2"]
[White "Rolland Piegue, Sacha"]
[Black "Lombardo, Patrick"]
[Result "0-1"]
[ECO "D15"]
[WhiteElo "1385"]
[BlackElo "1566"]
[Annotator "NA"]
[PlyCount "106"]
[EventDate "2019.08.17"]
[EventType "swiss"]
[EventCountry "FRA"]
[SourceTitle "playchess.com"]
[Source "ChessBase"]
[SourceQuality "1"]
[TimeControl "40/5400+30:1800+30"]

1. d4 {[%emt 0:00:00]} d5 {[%emt 0:00:00]} 2. c4 {[%emt 0:00:00]} c6 {[%emt 0:00:00]} 3. Nf3 {[%emt 0:00:27]} Nf6 {[%emt 0:00:00]} 4. Nc3 {[%emt 0:00:30]} dxc4 {[%emt 0:00:11]} 5. e4 {[%emt 0:00:33]} b5 {[%emt 0:00:14]} 6. Bf4 {[%emt 0:01:24]} b4 {[%emt 0:00:23]} 7. Na4 {[%emt 0:01:09]} Nxe4 {[%emt 0:00:22]} 8. Bxc4 {[%emt 0:00:33]} e6 {[%emt 0:00:26]} 9. Qc2 {[%emt 0:01:25]} Nf6 {[%emt 0:01:34]} 10. Rd1 {[%emt 0:04:51]} Be7 {[%emt 0:01:27]} 11. O-O {[%emt 0:00:30]} a5 {[%emt 0:01:06]} 12. Bb3 {[%emt 0:02:33]} O-O {[%emt 0:01:23]} 13. Ne5 {[%emt 0:00:58]} Bb7 {[%emt 0:03:49]} 14. Nc5 {[%emt 0:00:42]} Qb6 {[%emt 0:02:06]} 15. Rc1 {[%emt 0:01:44]} Rd8 {[%emt 0:06:51]} 16. Rfd1 {[%emt 0:03:44]} Nd5 {[%emt 0:02:31]} 17. Bg3 {[%emt 0:01:47]} Bg5 {[%emt 0:02:32]} 18. Rb1 {[%emt 0:00:48]} Bf4 {[%emt 0:04:39]} 19. Bxf4 {[%emt 0:04:44]} Nxf4 {[%emt 0:01:17]} 20. Qe4 {[%emt 0:02:33]} Nd5 {[%emt 0:01:22]} 21. Rbc1 {[%emt 0:01:15]} Ba6 {[%emt 0:05:16]} 22. Bc2 {[%emt 0:00:47]} Nf6 {[%emt 0:00:40]} 23. Qf3 {[%emt 0:01:17]} Bb5 {[%emt 0:01:45]} 24. b3 {[%emt 0:03:54]} Ra7 {[%emt 0:01:53]} 25. Be4 {[%emt 0:04:37]} Rd6 {[%emt 0:09:44]} 26. Qg3 {[%emt 0:01:49]} Qd8 {[%emt 0:04:32]} 27. Qe3 {[%emt 0:01:40]} Nxe4 {[%emt 0:03:04]} 28. Nxe4 {[%emt 0:00:26]} Rd5 {[%emt 0:00:34]} 29. Qd2 {[%emt 0:01:20]} f6 {[%emt 0:06:44]} 30. Nf3 {[%emt 0:00:46]} e5 {[%emt 0:02:46]} 31. Rc5 {[%emt 0:01:39]} Rad7 {[%emt 0:01:13]} 32. Qc1 {[%emt 0:01:30]} exd4 {[%emt 0:03:12]} 33. Rxd5 {[%emt 0:04:11]} Rxd5 {[%emt 0:00:33]} 34. Rd2 {[%emt 0:01:41]} d3 {[%emt 0:04:51]} 35. a4 {[%emt 0:05:35]} bxa3 {[%emt 0:01:48]} 36. Qxa3 {[%emt 0:00:40]} Qe8 {[%emt 0:00:51]} 37. Nc3 {[%emt 0:00:22]} Rf5 {[%emt 0:00:50]} 38. Kf1 {[%emt 0:02:02]} Qd8 {[%emt 0:02:03]} 39. Nxb5 {[%emt 0:00:47]} cxb5 {[%emt 0:01:31]} 40. b4 {[%emt 0:00:22]} a4 {[%emt 0:02:28]} 41. Rxd3 {[%emt 0:31:10]} Qc7 {[%emt 0:31:04]} 42. Qa2+ {[%emt 0:01:29]} Kh8 {[%emt 0:00:47]} 43. Qe6 {[%emt 0:01:10]} g6 {[%emt 0:03:17]} 44. Qe8+ {[%emt 0:00:50]} Kg7 {[%emt 0:00:03]} 45. Rd8 {[%emt 0:00:35]} Qc4+ {[%emt 0:06:36]} 46. Kg1 {[%emt 0:00:25]} Qxb4 {[%emt 0:01:14]} 47. Rxb8 {[%emt 0:01:38]} a3 {[%emt 0:08:02]} 48. Rb7+ {[%emt 0:01:21]} Kh6 {[%emt 0:00:06]} 49. Qe3+ {[%emt 0:00:48]} g5 {[%emt 0:00:42]} 50. Qe7 {[%emt 0:02:10]} Qxe7 {[%emt 0:01:14]} 51. Rxe7 {[%emt 0:00:41]} b4 {[%emt 0:01:57]} 52. Ra7 {[%emt 0:01:20]} Rb5 {[%emt 0:01:19]} 53. Nd4 {[%emt 0:00:17]} Rd5 {[%emt 0:00:30]} 0-1

[Event "94th FRA-ch Open D 2019"]
[Site "Chartres"]
[Date "2019.08.23"]
[Round "7.3"]
[White "Meynard, Cedrick"]
[Black "Nezosi, Christophe"]
[Result "0-1"]
[ECO "B00"]
[WhiteElo "1417"]
[BlackElo "1523"]
[Annotator "NA"]
[PlyCount "54"]
[EventDate "2019.08.17"]
[EventType "swiss"]
[EventCountry "FRA"]
[SourceTitle "playchess.com"]
[Source "ChessBase"]
[SourceQuality "1"]
[TimeControl "40/5400+30:1800+30"]

1. e4 {[%emt 0:00:00]} Nc6 {[%emt 0:00:00]} 2. d4 {[%emt 0:00:24]} d5 {[%emt 0:00:00]} 3. e5 {[%emt 0:01:50]} Bf5 {[%emt 0:00:18]} 4. c3 {[%emt 0:01:28]} e6 {[%emt 0:00:51]} 5. Nf3 {[%emt 0:01:03]} Nge7 {[%emt 0:00:54]} 6. Be2 {[%emt 0:03:12]} Ng6 {[%emt 0:01:03]} 7. Be3 {[%emt 0:09:27]} f6 {[%emt 0:01:44]} 8. exf6 {[%emt 0:01:44]} gxf6 {[%emt 0:03:20]} 9. Nbd2 {[%emt 0:06:53]} Qd7 {[%emt 0:05:10]} 10. Nb3 {[%emt 0:03:18]} Rg8 {[%emt 0:13:30]} 11. Rg1 {[%emt 0:05:42]} O-O-O {[%emt 0:13:59]} 12. Bd3 {[%emt 0:08:27]} Bg4 {[%emt 0:01:42]} 13. h3 {[%emt 0:06:00]} Bxf3 {[%emt 0:08:17]} 14. Qxf3 {[%emt 0:01:05]} Nh4 {[%emt 0:07:04]} 15. Qxf6 {[%emt 0:00:05]} Be7 {[%emt 0:02:08]} 16. Qh6 {[%emt 0:00:23]} Nxg2+ {[%emt 0:04:46]} 17. Ke2 {[%emt 0:01:19]} Nxe3 {[%emt 0:01:16]} 18. fxe3 {[%emt 0:00:17]} Rxg1 {[%emt 0:05:24]} 19. Rxg1 {[%emt 0:02:15]} Qd6 {[%emt 0:01:44]} 20. Rg2 {[%emt 0:01:31]} Rf8 {[%emt 0:10:27]} 21. Qxh7 {[%emt 0:02:38]} Nd8 {[%emt 0:03:39]} 22. Nc5 {[%emt 0:08:30]} e5 {[%emt 0:04:49]} 23. Bf5+ {[%emt 0:01:23]} Kb8 {[%emt 0:04:29]} 24. Nd7+ {[%emt 0:00:23]} Ka8 {[%emt 0:00:05]} 25. Nxf8 {[%emt 0:00:09]} Bxf8 {[%emt 0:00:42]} 26. Qd7 {[%emt 0:00:58]} Qa6+ {[%emt 0:00:00]} 27. Qb5 {[%emt 0:01:04]} Qxb5+ {[%emt 0:00:00]} 0-1

[Event "94th FRA-ch Open D 2019"]
[Site "Chartres"]
[Date "2019.08.23"]
[Round "7.4"]
[White "Gatineau, Milann"]
[Black "Paralieu, Maxime"]
[Result "1/2-1/2"]
[ECO "D02"]
[WhiteElo "1517"]
[BlackElo "1480"]
[Annotator "NA"]
[PlyCount "65"]
[EventDate "2019.08.17"]
[EventType "swiss"]
[EventCountry "FRA"]
[SourceTitle "playchess.com"]
[Source "ChessBase"]
[SourceQuality "1"]
[TimeControl "40/5400+30:1800+30"]

1. d4 {[%emt 1:30:30]} Nf6 {[%emt 1:30:30]} 2. Nf3 {[%emt 0:00:30]} e6 {[%emt 0:00:30]} 3. Bf4 {[%emt 0:00:30]} d5 {[%emt 0:00:30]} 4. e3 {[%emt 0:00:30]} c5 {[%emt 0:00:30]} 5. Be2 {[%emt 0:00:30]} Nc6 {[%emt 0:00:30]} 6. O-O {[%emt 0:00:30]} Be7 {[%emt 0:00:30]} 7. h3 {[%emt 0:00:30]} O-O {[%emt 0:00:30]} 8. c4 {[%emt 0:00:30]} h6 {[%emt 0:00:30]} 9. Nc3 {[%emt 0:00:30]} b6 {[%emt 0:00:30]} 10. Qd2 {[%emt 0:00:30]} Bb7 {[%emt 0:00:30]} 11. Rad1 {[%emt 0:00:30]} cxd4 {[%emt 0:00:30]} 12. exd4 {[%emt 0:00:30]} Rc8 {[%emt 0:00:30]} 13. cxd5 {[%emt 0:00:30]} Nxd5 {[%emt 0:00:30]} 14. Bg3 {[%emt 0:00:30]} Bf6 {[%emt 0:00:30]} 15. Rc1 {[%emt 0:00:30]} Nde7 {[%emt 0:00:30]} 16. Rfd1 {[%emt 0:00:30]} Nf5 {[%emt 0:00:30]} 17. Be5 {[%emt 0:00:30]} Bxe5 {[%emt 0:00:30]} 18. dxe5 {[%emt 0:00:30]} Qxd2 {[%emt 0:00:30]} 19. Rxd2 {[%emt 0:00:30]} Rfd8 {[%emt 0:00:30]} 20. Rcd1 {[%emt 0:00:30]} Rxd2 {[%emt 0:00:30]} 21. Rxd2 {[%emt 0:00:30]} Nce7 {[%emt 0:00:30]} 22. g4 {[%emt 0:00:30]} Bxf3 {[%emt 0:00:30]} 23. Bxf3 {[%emt 0:00:30]} Nh4 {[%emt 0:00:30]} 24. Bb7 {[%emt 0:00:30]} Rb8 {[%emt 0:00:30]} 25. Bh1 {[%emt 0:00:30]} Neg6 {[%emt 0:00:30]} 26. Re2 {[%emt 0:00:30]} Nf4 {[%emt 0:00:30]} 27. Re3 {[%emt 0:00:30]} Rd8 {[%emt 0:00:30]} 28. Kh2 {[%emt 0:00:30]} Rd2 {[%emt 0:00:30]} 29. Kg3 {[%emt 0:00:30]} g5 {[%emt 0:00:30]} 30. b3 {[%emt 0:00:30]} Rc2 {[%emt 0:00:30]} 31. a4 {[%emt 0:00:30]} Nh5+ {[%emt 0:00:30]} 32. Kh2 {[%emt 0:00:30]} Nf4 {[%emt 0:00:30]} 33. Kg3 {[%emt 0:00:30]} 1/2-1/2

[Event "94th FRA-ch Open D 2019"]
[Site "Chartres"]
[Date "2019.08.23"]
[Round "7.5"]
[White "Decurninge, Brice"]
[Black "Breuil, Virgile"]
[Result "1-0"]
[ECO "C54"]
[WhiteElo "1462"]
[BlackElo "1388"]
[Annotator "NA"]
[PlyCount "107"]
[EventDate "2019.08.17"]
[EventType "swiss"]
[EventCountry "FRA"]
[SourceTitle "playchess.com"]
[Source "ChessBase"]
[SourceQuality "1"]
[TimeControl "40/5400+30:1800+30"]

1. e4 {[%emt 0:00:00]} e5 {[%emt 0:00:00]} 2. Nf3 {[%emt 0:00:00]} Nc6 {[%emt 0:00:01]} 3. Bc4 {[%emt 0:00:00]} Bc5 {[%emt 0:00:29]} 4. c3 {[%emt 0:00:14]} Nf6 {[%emt 0:00:30]} 5. d3 {[%emt 0:00:19]} h6 {[%emt 0:01:31]} 6. O-O {[%emt 0:02:22]} d6 {[%emt 0:00:25]} 7. b4 {[%emt 0:03:19]} Bb6 {[%emt 0:00:30]} 8. Nbd2 {[%emt 0:00:47]} O-O {[%emt 0:01:03]} 9. h3 {[%emt 0:02:44]} Re8 {[%emt 0:00:41]} 10. Re1 {[%emt 0:03:01]} a6 {[%emt 0:00:53]} 11. Nf1 {[%emt 0:03:41]} Be6 {[%emt 0:01:55]} 12. Bxe6 {[%emt 0:00:33]} fxe6 {[%emt 0:01:00]} 13. Ng3 {[%emt 0:02:34]} d5 {[%emt 0:01:26]} 14. Qb3 {[%emt 0:03:43]} Qd7 {[%emt 0:07:35]} 15. Bb2 {[%emt 0:04:16]} Rad8 {[%emt 0:02:31]} 16. Rad1 {[%emt 0:04:10]} Qf7 {[%emt 0:01:09]} 17. a4 {[%emt 0:10:37]} Nh5 {[%emt 0:02:03]} 18. Nxh5 {[%emt 0:01:44]} Qxh5 {[%emt 0:03:30]} 19. c4 {[%emt 0:10:50]} Nd4 {[%emt 0:00:59]} 20. Bxd4 {[%emt 0:03:50]} dxc4 {[%emt 0:02:20]} 21. dxc4 {[%emt 0:01:50]} exd4 {[%emt 0:01:06]} 22. c5 {[%emt 0:00:42]} Ba7 {[%emt 0:00:41]} 23. Rxd4 {[%emt 0:05:19]} Rxd4 {[%emt 0:00:39]} 24. Nxd4 {[%emt 0:00:26]} Qg6 {[%emt 0:00:33]} 25. f3 {[%emt 0:02:23]} Kh8 {[%emt 0:01:26]} 26. Kf1 {[%emt 0:04:19]} e5 {[%emt 0:02:12]} 27. Nf5 {[%emt 0:01:26]} b6 {[%emt 0:01:18]} 28. Qd5 {[%emt 0:06:59]} bxc5 {[%emt 0:01:02]} 29. bxc5 {[%emt 0:00:31]} Rb8 {[%emt 0:02:19]} 30. Qxe5 {[%emt 0:01:09]} Rb4 {[%emt 0:02:34]} 31. Qxc7 {[%emt 0:03:07]} Rb2 {[%emt 0:01:28]} 32. Qg3 {[%emt 0:04:24]} Qf7 {[%emt 0:01:37]} 33. Rc1 {[%emt 0:07:11]} Qd7 {[%emt 0:03:46]} 34. Qd6 {[%emt 0:08:30]} Qc8 {[%emt 0:03:31]} 35. Qe7 {[%emt 0:00:00]} Rb7 {[%emt 0:01:16]} 36. Qe5 {[%emt 0:00:00]} Qc6 {[%emt 0:00:48]} 37. Qd5 {[%emt 0:00:00]} Qc7 {[%emt 0:01:19]} 38. Qd6 {[%emt 0:00:00]} Qf7 {[%emt 0:00:51]} 39. Qd5 {[%emt 0:00:00]} Qc7 {[%emt 0:00:18]} 40. Qd6 {[%emt 0:00:00]} Qf7 {[%emt 0:00:38]} 41. Qxa6 {[%emt 0:31:50]} Rb2 {[%emt 0:32:36]} 42. Qd6 {[%emt 0:00:00]} Qa2 {[%emt 0:00:00]} 43. Qf8+ {[%emt 0:00:00]} Qg8 {[%emt 0:00:00]} 44. Qxg8+ {[%emt 0:00:00]} Kxg8 {[%emt 0:00:00]} 45. Nd4 {[%emt 0:00:00]} Rd2 {[%emt 0:00:00]} 46. Nc6 {[%emt 0:00:00]} Rd7 {[%emt 0:00:00]} 47. Nxa7 {[%emt 0:00:00]} Rxa7 {[%emt 0:00:00]} 48. c6 {[%emt 0:00:00]} Rc7 {[%emt 0:00:00]} 49. a5 {[%emt 0:00:00]} Kf7 {[%emt 0:00:00]} 50. a6 {[%emt 0:00:00]} Ke6 {[%emt 0:00:00]} 51. a7 {[%emt 0:00:00]} Rc8 {[%emt 0:00:00]} 52. c7 {[%emt 0:00:00]} Kd7 {[%emt 0:00:00]} 53. Rd1+ {[%emt 0:00:00]} Kxc7 {[%emt 0:00:00]} 54. Rc1+ {[%emt 0:00:00]} 1-0

[Event "94th FRA-ch Open D 2019"]
[Site "Chartres"]
[Date "2019.08.23"]
[Round "7.6"]
[White "Picavet, Jean-Francois"]
[Black "Masson, Guillaume"]
[Result "1/2-1/2"]
[ECO "D00"]
[WhiteElo "1477"]
[BlackElo "1549"]
[Annotator "NA"]
[PlyCount "123"]
[EventDate "2019.08.17"]
[EventType "swiss"]
[EventCountry "FRA"]
[SourceTitle "playchess.com"]
[Source "ChessBase"]
[SourceQuality "1"]
[TimeControl "40/5400+30:1800+30"]

1. d4 {[%emt 0:00:00]} d5 {[%emt 0:00:00]} 2. e3 {[%emt 0:00:00]} e6 {[%emt 0:00:18]} 3. c3 {[%emt 0:00:38]} Nf6 {[%emt 0:01:12]} 4. Bd3 {[%emt 0:00:26]} c5 {[%emt 0:02:22]} 5. Nd2 {[%emt 0:02:26]} b6 {[%emt 0:02:41]} 6. f4 {[%emt 0:03:21]} Ba6 {[%emt 0:03:36]} 7. Qa4+ {[%emt 0:08:54]} Qd7 {[%emt 0:00:29]} 8. Qxd7+ {[%emt 0:00:47]} Kxd7 {[%emt 0:00:31]} 9. Bxa6 {[%emt 0:01:03]} Nxa6 {[%emt 0:00:06]} 10. Ne2 {[%emt 0:02:55]} Nc7 {[%emt 0:01:22]} 11. O-O {[%emt 0:05:15]} Nce8 {[%emt 0:04:05]} 12. Nf3 {[%emt 0:12:43]} Ne4 {[%emt 0:03:46]} 13. g4 {[%emt 0:08:27]} h5 {[%emt 0:03:48]} 14. g5 {[%emt 0:01:44]} g6 {[%emt 0:01:58]} 15. h4 {[%emt 0:02:32]} N8d6 {[%emt 0:01:04]} 16. Kh2 {[%emt 0:02:35]} Nf5 {[%emt 0:01:43]} 17. Kh3 {[%emt 0:03:52]} Bd6 {[%emt 0:02:27]} 18. Ne5+ {[%emt 0:11:10]} Bxe5 {[%emt 0:00:41]} 19. fxe5 {[%emt 0:00:56]} c4 {[%emt 0:00:45]} 20. b3 {[%emt 0:03:01]} b5 {[%emt 0:00:18]} 21. Bb2 {[%emt 0:06:51]} Rhb8 {[%emt 0:00:59]} 22. b4 {[%emt 0:02:06]} a5 {[%emt 0:00:45]} 23. a3 {[%emt 0:00:46]} Nd2 {[%emt 0:01:00]} 24. Rf2 {[%emt 0:01:28]} axb4 {[%emt 0:01:22]} 25. cxb4 {[%emt 0:00:52]} Ne4 {[%emt 0:01:02]} 26. Rf3 {[%emt 0:01:06]} Rc8 {[%emt 0:01:23]} 27. Nc3 {[%emt 0:01:03]} Nxc3 {[%emt 0:00:46]} 28. Bxc3 {[%emt 0:00:11]} Ke8 {[%emt 0:00:17]} 29. Ra2 {[%emt 0:02:08]} Rc7 {[%emt 0:00:39]} 30. Ra1 {[%emt 0:01:38]} Rca7 {[%emt 0:01:55]} 31. Bb2 {[%emt 0:00:42]} c3 {[%emt 0:01:16]} 32. Bc1 {[%emt 0:01:57]} Rc8 {[%emt 0:01:03]} 33. Rf2 {[%emt 0:01:29]} Rc4 {[%emt 0:02:00]} 34. Rc2 {[%emt 0:00:53]} Ne7 {[%emt 0:03:39]} 35. Raa2 {[%emt 0:01:21]} Nc8 {[%emt 0:00:30]} 36. Ra1 {[%emt 0:00:51]} Nb6 {[%emt 0:00:20]} 37. Kg3 {[%emt 0:01:03]} Rxb4 {[%emt 0:02:51]} 38. Rxc3 {[%emt 0:01:12]} Nc4 {[%emt 0:01:17]} 39. Kf3 {[%emt 0:03:06]} Rba4 {[%emt 0:01:23]} 40. Rb1 {[%emt 0:04:44]} Rxa3 {[%emt 0:04:53]} 41. Rxa3 {[%emt 0:30:41]} Nxa3 {[%emt 0:31:42]} 42. Bxa3 {[%emt 0:01:32]} Rxa3 {[%emt 0:00:06]} 43. Rxb5 {[%emt 0:00:16]} Ra1 {[%emt 0:00:25]} 44. Kg2 {[%emt 0:00:00]} Re1 {[%emt 0:00:00]} 45. Rb3 {[%emt 0:00:00]} Re2+ {[%emt 0:00:00]} 46. Kg3 {[%emt 0:00:00]} Rc2 {[%emt 0:00:00]} 47. Kf3 {[%emt 0:00:00]} Rh2 {[%emt 0:00:00]} 48. Kg3 {[%emt 0:00:00]} Rh1 {[%emt 0:00:00]} 49. Rb8+ {[%emt 0:00:00]} Ke7 {[%emt 0:00:00]} 50. Rb7+ {[%emt 0:00:00]} Kf8 {[%emt 0:00:00]} 51. Rb8+ {[%emt 0:00:00]} Kg7 {[%emt 0:00:00]} 52. Rb7 {[%emt 0:00:00]} Rg1+ {[%emt 0:00:00]} 53. Kh2 {[%emt 0:00:00]} Rg4 {[%emt 0:00:00]} 54. Kh3 {[%emt 0:00:00]} Re4 {[%emt 0:00:00]} 55. Rb3 {[%emt 0:00:00]} Rg4 {[%emt 0:00:00]} 56. Rc3 {[%emt 0:00:00]} Rg1 {[%emt 0:00:00]} 57. Rb3 {[%emt 0:00:00]} Rf1 {[%emt 0:00:00]} 58. Rc3 {[%emt 0:00:00]} Kf8 {[%emt 0:00:00]} 59. Kg2 {[%emt 0:00:00]} Rf5 {[%emt 0:00:00]} 60. Rb3 {[%emt 0:00:00]} Ke7 {[%emt 0:00:00]} 61. Ra3 {[%emt 0:00:00]} Kd7 {[%emt 0:00:00]} 62. Rc3 {[%emt 0:00:00]} 1/2-1/2

[Event "94th FRA-ch Open D 2019"]
[Site "Chartres"]
[Date "2019.08.24"]
[Round "8.1"]
[White "Lombardo, Patrick"]
[Black "Lissillour, Baptiste"]
[Result "0-1"]
[ECO "B90"]
[WhiteElo "1566"]
[BlackElo "1469"]
[Annotator "NA"]
[PlyCount "116"]
[EventDate "2019.08.17"]
[EventType "swiss"]
[EventCountry "FRA"]
[SourceTitle "playchess.com"]
[Source "ChessBase"]
[SourceQuality "1"]
[TimeControl "40/5400+30:1800+30"]

1. e4 {[%emt 0:00:00]} c5 {[%emt 0:00:00]} 2. Nf3 {[%emt 0:00:00]} d6 {[%emt 0:00:36]} 3. d4 {[%emt 0:00:01]} cxd4 {[%emt 0:00:23]} 4. Nxd4 {[%emt 0:00:07]} Nf6 {[%emt 0:03:10]} 5. Nc3 {[%emt 0:00:21]} a6 {[%emt 0:00:16]} 6. Be3 {[%emt 0:00:27]} e5 {[%emt 0:00:22]} 7. Nf3 {[%emt 0:00:17]} Be7 {[%emt 0:02:33]} 8. Be2 {[%emt 0:02:36]} Ng4 {[%emt 0:08:42]} 9. Nd5 {[%emt 0:01:04]} Nd7 {[%emt 0:01:04]} 10. Qd2 {[%emt 0:04:36]} Nxe3 {[%emt 0:02:54]} 11. Qxe3 {[%emt 0:04:24]} O-O {[%emt 0:02:53]} 12. O-O {[%emt 0:02:04]} Nf6 {[%emt 0:02:27]} 13. c4 {[%emt 0:07:12]} Nxd5 {[%emt 0:01:31]} 14. cxd5 {[%emt 0:00:34]} f5 {[%emt 0:00:23]} 15. exf5 {[%emt 0:07:37]} Bxf5 {[%emt 0:02:05]} 16. Qb3 {[%emt 0:02:22]} Bf6 {[%emt 0:03:37]} 17. Qxb7 {[%emt 0:05:36]} Rb8 {[%emt 0:03:25]} 18. Qxa6 {[%emt 0:01:38]} e4 {[%emt 0:03:32]} 19. Nd2 {[%emt 0:04:37]} Rxb2 {[%emt 0:10:22]} 20. Nb3 {[%emt 0:02:09]} Qa8 {[%emt 0:02:27]} 21. Qxa8 {[%emt 0:13:46]} Rxa8 {[%emt 0:01:25]} 22. Bb5 {[%emt 0:02:38]} Rxb3 {[%emt 0:01:40]} 23. Bc6 {[%emt 0:01:05]} Bxa1 {[%emt 0:02:24]} 24. Bxa8 {[%emt 0:00:31]} Ra3 {[%emt 0:00:10]} 25. Rxa1 {[%emt 0:01:59]} Rxa8 {[%emt 0:00:09]} 26. a4 {[%emt 0:00:21]} Ra5 {[%emt 0:03:29]} 27. h4 {[%emt 0:01:40]} Bd7 28. Rb1 {[%emt 0:34:18]} Rxd5 {[%emt 0:00:52]} 29. Rb8+ {[%emt 0:00:30]} Kf7 30. Ra8 Rc5 31. a5 Rc8 32. Ra7 {[%emt 0:00:00]} Ke6 {[%emt 0:43:09]} 33. g4 Kf6 {[%emt 0:00:00]} 34. Rxd7 {[%emt 0:00:00]} Rc6 {[%emt 0:00:00]} 35. Kf1 {[%emt 0:00:00]} h6 {[%emt 0:00:00]} 36. Ke2 {[%emt 0:00:00]} g5 {[%emt 0:00:00]} 37. hxg5+ {[%emt 0:00:00]} hxg5 {[%emt 0:00:00]} 38. Ke3 {[%emt 0:00:00]} Ke5 {[%emt 0:00:00]} 39. Re7+ {[%emt 0:00:00]} Kd5 {[%emt 0:00:00]} 40. Rg7 {[%emt 0:00:00]} Kc4 {[%emt 0:00:00]} 41. Rg6 {[%emt 0:11:51]} Ra6 {[%emt 0:13:58]} 42. Rxg5 {[%emt 0:00:40]} d5 {[%emt 0:21:02]} 43. f4 {[%emt 0:04:13]} Rxa5 {[%emt 0:00:00]} 44. Rg8 {[%emt 0:03:31]} Ra3+ {[%emt 0:00:00]} 45. Ke2 {[%emt 0:00:52]} Ra2+ {[%emt 0:00:00]} 46. Ke3 {[%emt 0:00:33]} Ra3+ {[%emt 0:00:00]} 47. Ke2 {[%emt 0:00:17]} Kd4 {[%emt 0:00:00]} 48. Rb8 {[%emt 0:02:46]} Ra2+ {[%emt 0:00:00]} 49. Ke1 {[%emt 0:02:37]} Ke3 {[%emt 0:00:00]} 50. Rb3+ {[%emt 0:01:40]} Kxf4 {[%emt 0:00:00]} 51. Rb5 {[%emt 0:00:09]} d4 {[%emt 0:00:00]} 52. g5 {[%emt 0:00:17]} Rg2 {[%emt 0:00:00]} 53. Rb4 {[%emt 0:02:23]} Ke3 {[%emt 0:00:00]} 54. Rb3+ {[%emt 0:02:18]} d3 {[%emt 0:00:00]} 55. Kf1 {[%emt 0:00:14]} Rxg5 {[%emt 0:00:00]} 56. Ra3 {[%emt 0:01:58]} Kf3 {[%emt 0:00:00]} 57. Ra2 {[%emt 0:00:30]} e3 {[%emt 0:00:00]} 58. Rf2+ {[%emt 0:00:14]} Ke4 {[%emt 0:00:00]} 0-1